bitfinex/quotes_ETHUSD_20220227
["timestamp","ask_amount","ask_price","bid_price","bid_amount"]
[1645955985811,1.23936995,2769.8,2769.7,0.85819543]
[1645955986012,1.04115322,2769.8,2769.7,0.85819543]
[1645955986414,0.00565697,2769.9,2769.7,1.62806717]
[1645955986612,0.00565697,2769.9,2769.8,3.97169256]
[1645955986813,0.00565697,2769.9,2769.8,4.85499256]
[1645955987061,8.04042134,2771.5,2770.8,1.4038197]
[1645955987272,2.0446821,2771.6,2770.7,0.3]
[1645955987273,1.04065062,2771.4,2770.7,0.3]
[1645955987458,1.04065062,2771.3,2770.7,0.3]
[1645955987757,1.04065062,2771.2,2770.3,4.5]
[1645955987958,1.04065062,2771.1,2770.4,0.46910164]
[1645955988157,2.0446821,2771.6,2770.4,0.46910164]
[1645955988158,1.04065062,2771.5,2770.4,0.46910164]
[1645955988357,1.36623775,2771.1,2770.5,4.33535911]
[1645955988557,1.04065062,2771.0,2770.6,0.46910164]
[1645955988758,1.04065062,2771.0,2770.6,0.76910164]
[1645955988961,1.04065062,2771.0,2770.6,0.3]
[1645955989158,1.04065062,2771.5,2770.5,2.88675911]
[1645955989358,1.03991792,2771.4,2770.6,3.96889475]
[1645955989558,1.03991792,2771.3,2770.7,0.46889475]
[1645955989762,2.0446821,2771.6,2770.8,3.5]
[1645955989960,1.04028803,2771.5,2770.9,0.46889475]
[1645955990461,1.07817096,2771.4,2770.9,0.46889475]
[1645955990717,1.04030572,2771.3,2770.9,0.46889475]
[1645955991106,1.04626503,2771.3,2770.9,0.46889475]
[1645955991306,0.00595931,2771.3,2770.9,0.45019475]
[1645955991506,0.00595931,2771.3,2770.8,0.3]
[1645955991706,0.00595931,2771.3,2770.6,4.5]
[1645955991905,1.07817096,2771.4,2770.6,1.0]
[1645955992316,1.07817096,2771.4,2770.5,0.3]
[1645955992317,0.00595943,2771.2,2770.5,0.3]
[1645955992510,0.00595943,2771.2,2770.6,3.5]
[1645955992711,0.00595943,2771.2,2770.6,4.5]
[1645955993212,1.07817096,2771.4,2770.6,5.54729898]
[1645955993413,2.0446821,2771.6,2770.7,3.5]
[1645955993414,0.00595955,2771.0,2770.7,3.5]
[1645955993712,0.00595955,2771.0,2770.7,1.0]
[1645955994112,0.00595955,2771.0,2770.6,1.04729898]
[1645955994313,2.0446821,2771.6,2770.6,1.04729898]
[1645955994562,0.00595959,2771.0,2770.7,3.5]
[1645955994763,0.00595959,2771.0,2770.7,1.3]
[1645955995159,0.00595959,2771.0,2770.7,0.3]
[1645955995361,0.00595959,2771.0,2770.4,4.8]
[1645955995562,2.0446821,2771.6,2770.7,1.41937441]
[1645955995763,0.00595959,2771.0,2770.7,1.71937441]
[1645955996664,0.00595959,2771.0,2770.8,3.5]
[1645955996863,2.0446821,2771.6,2770.8,4.5]
[1645955997067,0.00595959,2771.0,2770.8,4.5]
[1645955997266,5.959e-05,2771.0,2770.8,4.5]
[1645955997475,5.959e-05,2771.0,2770.9,9.3833]
[1645955997667,2.0446821,2771.6,2771.1,0.3613]
[1645955997668,8.21e-05,2771.6,2771.1,0.3613]
[1645955997872,3.056e-05,2771.9,2771.6,0.3613]
[1645955998217,0.0004674,2772.4,2771.8,0.6613]
[1645955998418,0.0004674,2772.4,2772.0,0.3613]
[1645955998620,0.0004674,2772.4,2771.1,0.25]
[1645955998820,7.36,2772.3,2771.3,0.5]
[1645955999019,1.14485672,2771.4,2771.3,0.5]
[1645955999224,0.59777575,2772.0,2771.3,0.5]
[1645955999417,0.59777575,2772.0,2771.7,0.00597693]
[1645955999418,4.0056,2771.9,2771.7,0.00597693]
[1645955999618,3.8613,2771.8,2771.7,7.693e-05]
[1645955999819,4.3833,2771.8,2771.7,7.693e-05]
[1645956000022,5.56338108,2771.8,2771.7,7.693e-05]
[1645956000218,5.48634113,2771.8,2771.7,7.693e-05]
[1645956000421,5.48634113,2771.8,2771.0,0.0008]
[1645956000422,2.06338108,2771.8,2771.0,0.0008]
[1645956000618,0.8833,2771.8,2771.0,0.0008]
[1645956001418,6.0,2771.7,2770.9,7.20824]
[1645956001618,0.522,2771.7,2770.9,7.20824]
[1645956001818,0.07577575,2772.0,2770.9,7.20824]
[1645956002079,0.1443,2772.1,2771.0,3.8613]
[1645956002275,0.00096,2772.2,2771.0,4.3833]
[1645956002470,0.00096,2772.2,2771.1,0.18008108]
[1645956002675,0.00096,2772.2,2771.6,0.06266242]
[1645956002872,1.1546,2772.3,2771.6,3.5]
[1645956003270,1.1546,2772.3,2771.6,4.8]
[1645956003470,1.1546,2772.3,2771.6,5.1613]
[1645956003880,1.1546,2772.3,2771.8,0.3613]
[1645956004081,1.1546,2772.3,2771.8,3.8613]
[1645956004274,1.1546,2772.3,2772.0,0.06266242]
[1645956004472,1.1546,2772.3,2771.8,4.8]
[1645956004671,1.1546,2772.3,2771.8,5.1613]
[1645956004873,1.1546,2772.3,2771.9,0.90203]
[1645956005076,1.1546,2772.3,2772.0,3.5]
[1645956005280,1.1546,2772.3,2772.0,1.0]
[1645956005476,0.00597718,2772.2,2772.0,1.0]
[1645956005717,0.00597718,2772.2,2771.9,1.47674488]
[1645956005916,0.00597718,2772.2,2772.1,0.06266242]
[1645956006123,0.00597718,2772.2,2771.9,1.47674488]
[1645956006322,1.1546,2772.3,2771.9,1.17674488]
[1645956006522,1.1546,2772.3,2771.9,2.37877488]
[1645956006722,1.16057714,2772.3,2771.9,2.37877488]
[1645956007122,1.16057714,2772.3,2771.9,1.47674488]
[1645956007323,1.16057714,2772.3,2772.1,0.06266242]
[1645956007524,1.16057714,2772.3,2771.9,1.47674488]
[1645956007724,1.1546,2772.3,2771.9,1.47674488]
[1645956007928,1.1546,2772.3,2771.9,1.17674488]
[1645956007929,0.00597718,2772.2,2771.9,1.17674488]
[1645956008724,1.1546,2772.3,2771.9,1.17674488]
[1645956008927,1.1546,2772.3,2772.1,0.06266242]
[1645956009127,0.00527541,2772.2,2772.1,1.06591886]
[1645956009963,1.1546,2772.3,2772.1,1.06591886]
[1645956010365,0.28345286,2772.0,2771.6,0.00527673]
[1645956010964,0.28345286,2772.0,2771.3,0.21662247]
[1645956011172,0.28345286,2772.0,2771.0,0.10090445]
[1645956012070,0.64475286,2772.0,2771.0,0.10090445]
[1645956012269,3.8613,2771.9,2771.0,0.10090445]
[1645956012669,4.0056,2771.9,2771.0,0.10090445]
[1645956012871,1.11289516,2771.4,2771.0,0.10090445]
[1645956013920,1.11289516,2771.4,2771.1,0.0059785]
[1645956014422,3.5,2771.3,2771.2,1.06591886]
[1645956014619,1.47419516,2771.4,2771.2,1.06591886]
[1645956015220,1.47419516,2771.4,2771.2,0.61451886]
[1645956015221,3.8613,2771.3,2771.2,0.61451886]
[1645956015420,4.3833,2771.3,2771.2,0.61451886]
[1645956015826,1.0276,2771.3,2771.2,0.61451886]
[1645956016220,0.1443,2771.3,2771.2,0.61451886]
[1645956016422,3.5,2771.3,2771.2,0.61451886]
[1645956016622,1.11289516,2771.4,2771.2,0.61451886]
[1645956017261,0.1443,2771.8,2771.2,0.61451886]
[1645956017462,0.00597679,2771.9,2771.2,0.92049728]
[1645956017662,0.00597679,2771.9,2771.2,0.62049728]
[1645956018263,0.3613,2771.7,2771.2,0.16909728]
[1645956018567,1.75238159,2771.6,2771.4,0.00224754]
[1645956019565,3.8613,2771.5,2771.0,0.10090445]
[1645956019763,0.3613,2771.3,2771.0,0.10090445]
[1645956019965,4.3833,2771.3,2771.0,0.10090445]
[1645956020164,0.8833,2771.3,2771.0,0.10090445]
[1645956020370,0.3613,2770.9,2770.7,0.10090445]
[1645956020571,7.3613,2770.7,2770.4,0.12654404]
[1645956020813,7.8833,2770.7,2770.4,0.20180888]
[1645956021509,6.25262791,2770.6,2770.2,0.02054301]
[1645956022115,1.25262791,2770.6,2770.2,0.02054301]
[1645956022414,1.25262791,2770.6,2770.3,0.00598278]
[1645956023314,1.25262791,2770.6,2770.0,0.02563959]
[1645956023515,1.25262791,2770.6,2770.3,0.00224677]
[1645956024463,1.25262791,2770.6,2770.1,0.52368709]
[1645956024761,1.25262791,2770.6,2770.4,0.16311886]
[1645956025966,1.25262791,2770.6,2770.4,0.16536559]
[1645956026774,1.25262791,2770.6,2770.4,0.16311886]
[1645956027269,1.25262791,2770.6,2770.4,0.16910519]
[1645956028068,1.25262791,2770.6,2770.4,0.16311886]
[1645956028301,1.25262791,2770.6,2770.4,0.11910519]
[1645956029305,1.25262791,2770.6,2770.4,0.11311886]
[1645956029504,1.25262791,2770.6,2770.4,0.11910519]
[1645956029706,1.25262791,2770.6,2770.4,0.00598633]
[1645956030106,1.25262791,2770.6,2770.5,0.11311886]
[1645956030509,3.8613,2770.5,2769.8,0.30271329]
[1645956030708,3.8613,2770.5,2770.4,0.00598629]
[1645956030709,2.23418842,2770.5,2770.4,0.00598629]
[1645956031708,2.23418842,2770.5,2769.8,0.32835288]
[1645956031967,1.17498829,2770.1,2769.9,0.4961925]
[1645956032170,2.23418842,2770.5,2769.9,0.4961925]
[1645956032969,0.3613,2770.5,2769.8,0.32835288]
[1645956033170,0.00376529,2770.3,2769.8,0.32835288]
[1645956033373,0.00376529,2770.3,2769.7,0.95400328]
[1645956033571,0.00376529,2770.3,2769.7,0.83095616]
[1645956033771,0.00376529,2770.3,2769.8,3.5]
[1645956033974,1.1398,2770.9,2769.8,3.5]
[1645956034371,1.07958324,2770.8,2770.3,1.09345641]
[1645956034570,1.07958324,2770.8,2769.8,3.50598701]
[1645956034571,0.00598609,2770.2,2769.8,3.50598701]
[1645956034772,0.00598609,2770.2,2769.8,4.50598701]
[1645956035378,1.07958324,2770.8,2769.8,4.5]
[1645956035573,0.00598613,2770.1,2769.8,4.50598695]
[1645956035808,0.00598613,2770.1,2769.9,1.04912422]
[1645956036008,0.00598613,2770.1,2769.9,1.41042422]
[1645956036212,0.00598613,2770.1,2770.0,3.5]
[1645956036410,1.1973,2771.2,2770.0,4.6501]
[1645956036612,1.1973,2771.2,2770.2,0.3613]
[1645956036818,1.1973,2771.2,2770.3,4.3833]
[1645956037217,1.1973,2771.2,2770.3,5.3833]
[1645956037415,1.1973,2771.2,2770.8,1.37850673]
[1645956037616,2.9312,2771.4,2770.8,4.87850673]
[1645956038016,0.00598553,2770.9,2770.8,4.87850673]
[1645956038220,0.00598553,2770.9,2770.8,1.37850673]
[1645956038615,0.00598553,2770.9,2770.8,4.87850673]
[1645956038815,0.00598553,2770.9,2770.8,5.87850673]
[1645956039018,1.36974226,2771.6,2770.8,5.87850673]
[1645956039321,0.00528342,2771.0,2770.8,5.87850673]
[1645956040160,4.0162,2771.7,2770.9,3.5]
[1645956040363,0.00528339,2771.0,2770.9,4.5]
[1645956040562,0.00528339,2771.0,2770.9,1.0]
[1645956040761,0.00528339,2771.0,2770.9,3.5]
[1645956041162,0.00528339,2771.0,2770.9,4.5]
[1645956041363,5.29192811,2771.7,2770.9,4.5]
[1645956041565,0.00528335,2771.1,2770.9,4.5]
[1645956041970,0.00528335,2771.1,2770.9,4.8613]
[1645956042168,0.00528335,2771.1,2770.9,1.3613]
[1645956042369,0.00528335,2771.1,2770.9,0.3613]
[1645956042568,4.0162,2771.7,2770.9,3.8613]
[1645956042769,4.0162,2771.7,2770.9,1.3613]
[1645956042770,0.00528332,2771.1,2770.9,1.3613]
[1645956043218,0.00528332,2771.1,2770.9,0.3613]
[1645956043605,0.00528332,2771.1,2770.9,3.8613]
[1645956043806,0.1443,2771.9,2771.0,3.5]
[1645956044008,0.00535423,2771.1,2771.0,3.5]
[1645956044208,0.00535423,2771.1,2771.0,4.5]
[1645956044408,0.00535423,2771.1,2771.0,3.5]
[1645956044611,0.00535423,2771.1,2771.0,4.5]
[1645956044808,0.00535423,2771.1,2771.0,5.76359]
[1645956045007,0.28345286,2772.0,2771.2,1.26348]
[1645956045210,0.28345286,2772.0,2771.4,0.6613]
[1645956045407,0.28345286,2772.0,2771.5,3.0486]
[1645956045608,0.28345286,2772.0,2771.5,3.5]
[1645956045808,1.05848878,2771.8,2771.5,1.0]
[1645956046006,0.28345286,2772.0,2771.4,1.9613]
[1645956046208,0.28345286,2772.0,2771.4,4.1613]
[1645956046409,0.28345286,2772.0,2771.4,3.8613]
[1645956046410,0.00535378,2771.8,2771.4,3.8613]
[1645956046708,0.00535378,2771.8,2771.4,1.0]
[1645956047167,0.00535378,2771.8,2771.3,0.3]
[1645956047364,1.14740301,2771.7,2770.9,5.34763959]
[1645956047565,1.15275367,2771.7,2771.0,0.3613]
[1645956047763,1.15275367,2771.7,2771.1,4.1613]
[1645956048164,1.15275367,2771.7,2771.1,4.8]
[1645956048363,1.15275367,2771.7,2771.1,4.7239]
[1645956048564,1.14740301,2771.7,2771.1,4.7239]
[1645956048767,0.0053508,2771.5,2771.1,4.7239]
[1645956049564,0.0053508,2771.5,2771.1,5.62616]
[1645956049772,1.14600301,2771.7,2771.1,5.62616]
[1645956049966,1.14600301,2771.7,2771.1,1.2239]
[1645956050167,0.00535086,2771.4,2771.1,1.2239]
[1645956050369,0.00535086,2771.4,2771.1,0.2239]
[1645956050571,0.00535086,2771.4,2770.9,4.82563959]
[1645956050812,0.0018454,2771.4,2770.9,4.82563959]
[1645956051012,1.14600301,2771.7,2770.9,6.12273074]
[1645956052922,1.14600301,2771.7,2770.9,4.82563959]
[1645956053117,1.14600301,2771.7,2771.0,0.4899578]
[1645956053518,1.14600301,2771.7,2771.1,3.5]
[1645956053717,1.14600301,2771.7,2771.2,0.4899578]
[1645956054758,0.00598606,2771.6,2771.2,0.4899578]
[1645956055159,0.00598606,2771.6,2771.3,0.4899578]
[1645956055359,0.00598606,2771.6,2771.4,0.4899578]
[1645956055558,0.00598606,2771.6,2770.9,0.02563959]
[1645956055761,1.01832155,2771.5,2771.0,0.49015013]
[1645956055961,0.00598602,2771.6,2771.0,0.49015013]
[1645956056961,1.41145971,2771.2,2771.0,0.49015013]
[1645956059010,1.41145971,2771.2,2771.0,0.51578972]
[1645956059210,1.36145971,2771.2,2771.0,0.02563959]
[1645956059412,1.36145971,2771.2,2771.1,0.49041609]
[1645956059811,1.36145971,2771.2,2771.0,0.02563959]
[1645956060012,1.36145971,2771.2,2771.1,0.49043854]
[1645956061713,0.94475286,2772.0,2771.1,0.49043854]
[1645956061962,0.3613,2771.8,2771.1,0.49043854]
[1645956062165,0.3613,2771.6,2771.1,0.49043854]
[1645956062465,1.37967573,2771.5,2771.1,0.49043854]
[1645956062665,1.37967573,2771.4,2771.1,0.49043854]
[1645956062869,1.66539335,2771.4,2771.1,0.49043854]
[1645956063267,1.66539335,2771.4,2771.0,0.22744843]
[1645956063664,1.66539335,2771.4,2771.1,0.49046931]
[1645956066107,1.66539335,2771.4,2771.0,0.32835285]
[1645956066108,1.01845288,2771.3,2771.0,0.32835285]
[1645956066310,1.66539335,2771.4,2771.1,0.49101285]
[1645956068714,1.66539335,2771.4,2771.0,0.44980028]
[1645956068715,1.38001849,2771.3,2771.0,0.44980028]
[1645956069117,0.3613,2771.3,2771.0,0.44980028]
[1645956070868,0.0059914,2771.5,2771.1,3.99121035]
[1645956071072,0.0059914,2771.5,2771.2,0.49121035]
[1645956071073,0.00206713,2771.5,2771.2,0.49121035]
[1645956071273,0.00206713,2771.5,2771.3,3.5]
[1645956071472,1.01914284,2771.9,2771.4,0.49121035]
[1645956071670,0.28345286,2772.0,2771.5,0.49121035]
[1645956071870,1.34202127,2771.9,2771.6,0.49121035]
[1645956072072,1.34202127,2771.9,2771.7,0.49121035]
[1645956072272,1.34202127,2771.9,2771.1,4.5]
[1645956072273,1.01910165,2771.8,2771.1,4.5]
[1645956072571,1.70332127,2771.9,2771.2,0.49079731]
[1645956072771,1.01909936,2771.8,2771.2,0.63509731]
[1645956072972,1.01909936,2771.8,2771.3,0.49079731]
[1645956073224,1.01909936,2771.8,2771.4,0.49079731]
[1645956073412,1.01909936,2771.8,2771.5,0.49079731]
[1645956073915,0.3613,2771.7,2771.5,0.49079731]
[1645956074214,1.38039936,2771.6,2771.4,0.02563959]
[1645956074413,1.38039936,2771.5,2771.4,0.10090442]
[1645956074611,1.48632127,2771.9,2771.4,0.10090442]
[1645956074813,1.34202127,2771.9,2771.4,0.10090442]
[1645956075014,0.28345286,2772.0,2771.4,0.10090442]
[1645956075412,0.28345286,2772.0,2771.4,0.12654401]
[1645956076213,0.28345286,2772.0,2771.5,1.29192049]
[1645956076613,0.28345286,2772.0,2771.5,1.31756008]
[1645956077081,0.28345286,2772.0,2771.5,4.81756008]
[1645956077379,0.28345286,2772.0,2771.5,2.31756008]
[1645956077678,0.28345286,2772.0,2771.5,5.83810309]
[1645956077878,0.28345286,2772.0,2771.5,4.83810309]
[1645956078080,0.28345286,2772.0,2771.5,2.33810309]
[1645956078281,0.28345286,2772.0,2771.5,0.0461826]
[1645956078482,0.28345286,2772.0,2771.5,3.5461826]
[1645956078679,0.28345286,2772.0,2771.5,0.12144743]
[1645956078981,0.00599254,2771.9,2771.5,1.12144743]
[1645956079279,0.00599254,2771.9,2771.5,1.20416495]
[1645956079680,0.28345286,2772.0,2771.5,0.19671226]
[1645956080078,0.00599258,2771.8,2771.5,0.19671226]
[1645956080284,0.00599258,2771.8,2771.5,3.69671226]
[1645956080482,0.02492673,2772.3,2771.7,11.04]
[1645956080730,0.02396673,2772.3,2771.8,4.022]
[1645956080921,0.00096,2772.9,2771.8,4.022]
[1645956081127,0.00096,2772.9,2771.8,5.022]
[1645956081320,1.20352585,2772.5,2771.8,1.0]
[1645956081528,1.20352585,2772.5,2771.7,0.6]
[1645956081529,3.5,2772.4,2771.7,0.3]
[1645956081719,3.5,2772.4,2771.5,0.22235185]
[1645956081720,3.8613,2772.4,2771.6,0.07526483]
[1645956081926,0.00096,2772.3,2771.6,0.07526483]
[1645956082630,0.3613,2772.2,2771.6,0.07526483]
[1645956082826,0.1443,2772.1,2771.6,0.10090442]
[1645956083226,0.3613,2772.2,2771.6,0.10090442]
[1645956083227,4.0056,2772.2,2771.6,0.10090442]
[1645956083632,4.68602134,2772.2,2771.6,0.10090442]
[1645956084027,4.68602134,2772.2,2771.5,0.22235185]
[1645956084028,0.3613,2772.0,2771.5,0.22235185]
[1645956084235,0.3613,2772.0,2771.2,0.02722009]
[1645956084236,6.0,2771.7,2771.2,0.02722009]
[1645956084470,3.8613,2771.6,2771.2,0.02722009]
[1645956084769,0.1443,2771.5,2771.2,0.02722009]
[1645956084971,0.8833,2771.4,2771.0,0.02832061]
[1645956085170,0.3613,2771.2,2771.0,0.02832061]
[1645956087774,9.0,2771.3,2771.0,0.02832061]
[1645956087775,3.8613,2771.1,2771.0,0.02832061]
[1645956087983,0.3613,2771.2,2771.0,0.02832061]
[1645956090439,0.3613,2771.0,2770.7,0.00562758]
[1645956090639,2.85682359,2770.9,2770.6,0.00110052]
[1645956090938,0.3613,2770.9,2770.7,0.00562758]
[1645956091141,1.25344834,2770.8,2770.7,0.00562758]
[1645956091348,0.37937561,2770.8,2770.7,0.00562758]
[1645956091741,0.37937561,2770.8,2770.6,0.00110052]
[1645956092163,0.37937561,2770.8,2770.6,0.00672795]
[1645956093065,0.74067561,2770.8,2770.6,0.00110052]
[1645956093282,4.16912134,2771.3,2770.6,0.00334084]
[1645956093466,4.16912134,2771.3,2770.4,0.16222002]
[1645956093467,3.4887,2771.3,2770.4,0.00146086]
[1645956094666,1.24848835,2770.9,2770.4,0.00146086]
[1645956095269,3.4887,2771.3,2770.4,3.50146086]
[1645956095468,1.00383167,2771.2,2770.5,0.5079208]
[1645956096211,1.17801048,2770.8,2770.7,0.151994]
[1645956096613,1.17801048,2770.8,2770.7,0.6599148]
[1645956097016,2.18181151,2770.8,2770.7,0.6599148]
[1645956097216,2.18181151,2770.8,2770.7,0.151994]
[1645956100275,2.54311151,2770.8,2770.7,0.151994]
[1645956102279,6.3613,2770.7,2770.6,0.00330156]
[1645956102480,7.36510103,2770.7,2770.6,0.00330156]
[1645956103718,1.36510103,2770.7,2770.6,0.00330156]
[1645956103915,1.36510103,2770.7,2770.6,0.00220104]
[1645956104117,1.00380103,2770.7,2770.6,0.00220104]
[1645956104916,1.36510103,2770.7,2770.6,0.00110052]
[1645956105817,1.36510103,2770.7,2770.5,0.03479058]
[1645956106019,0.3613,2770.7,2770.5,0.03479058]
[1645956106218,0.3613,2770.7,2770.5,0.0555407]
[1645956106418,0.3613,2770.7,2770.5,0.06091017]
[1645956106824,0.3613,2770.7,2770.5,0.06201069]
[1645956107064,1.53931048,2770.8,2770.5,0.06091017]
[1645956107263,1.53931048,2770.8,2770.5,0.06237103]
[1645956107464,1.53931048,2770.8,2770.5,0.05700156]
[1645956107665,1.00256926,2770.7,2770.5,0.06236385]
[1645956107865,1.00146874,2770.7,2770.5,0.06236385]
[1645956108066,1.36276874,2770.7,2770.5,0.06236385]
[1645956108279,1.36276874,2770.7,2770.5,0.08848342]
[1645956108280,0.3613,2770.7,2770.5,0.08848342]
[1645956108667,0.3613,2770.7,2770.5,0.08312113]
[1645956108869,0.3613,2770.7,2770.5,0.06016282]
[1645956109072,0.3613,2770.7,2770.0,0.02145243]
[1645956109073,7.3613,2770.6,2770.0,0.02145243]
[1645956109271,0.3613,2770.4,2770.0,0.02145243]
[1645956109474,0.3613,2770.4,2770.0,0.047572]
[1645956109475,0.3613,2770.2,2770.0,0.047572]
[1645956109873,1.60325324,2770.4,2769.4,0.00166911]
[1645956109874,0.3613,2770.0,2769.4,0.00166911]
[1645956110069,1.1409961,2769.3,2769.1,0.00166911]
[1645956110368,0.3613,2770.0,2768.9,0.00166911]
[1645956110369,1.5281,2770.0,2768.9,0.00166911]
[1645956110573,0.3613,2769.8,2768.8,4.17183685]
[1645956110827,0.3613,2769.8,2768.9,0.00166911]
[1645956111427,3.3008,2769.9,2768.9,0.00166911]
[1645956111627,3.3008,2769.9,2768.8,4.53313685]
[1645956111827,3.3008,2769.9,2768.9,0.00175654]
[1645956112434,3.3008,2769.9,2769.3,1.05534864]
[1645956112632,3.3008,2769.9,2768.9,0.67359339]
[1645956112834,3.3008,2769.9,2768.9,0.00175654]
[1645956113734,1.23621444,2769.6,2768.9,0.00175654]
[1645956113934,1.23621444,2769.6,2768.9,3.50175654]
[1645956114134,1.23621444,2769.6,2768.9,0.00175654]
[1645956114337,1.23621444,2769.6,2768.9,1.00175654]
[1645956114568,1.23621444,2769.6,2768.8,3.05045654]
[1645956114864,1.23621444,2769.6,2769.1,0.00600054]
[1645956115865,3.6621,2769.9,2768.6,0.67183685]
[1645956116069,3.6621,2769.9,2768.5,0.5]
[1645956116070,0.3,2769.6,2769.2,0.00600046]
[1645956116266,0.8833,2769.5,2769.2,0.00600046]
[1645956116464,1.0277,2769.5,2769.2,0.00600046]
[1645956116867,1.07660459,2769.4,2769.2,0.00600046]
[1645956117075,0.1444,2769.3,2768.3,0.25]
[1645956117269,0.1444,2769.3,2769.2,0.00600046]
[1645956117471,4.3613,2769.3,2768.1,0.00174974]
[1645956117669,0.3613,2769.3,2768.1,0.00174974]
[1645956117869,1.22100459,2769.4,2768.1,0.00174974]
[1645956118072,1.07660459,2769.4,2768.2,0.3613]
[1645956118318,1.07660459,2769.4,2768.5,1.20160777]
[1645956118720,0.3613,2769.3,2768.5,0.00174974]
[1645956119320,0.3613,2769.3,2768.3,0.00174974]
[1645956119724,0.3613,2769.1,2767.8,4.5]
[1645956119924,1.38930711,2768.4,2767.8,4.8]
[1645956120126,1.38930711,2768.4,2768.0,0.02250915]
[1645956120325,0.00562512,2769.0,2768.0,0.02250915]
[1645956120525,0.00562512,2769.0,2767.8,3.07120915]
[1645956120728,3.6502,2769.1,2767.7,1.84844628]
[1645956120926,3.6502,2769.1,2768.4,0.0021982]
[1645956121225,4.9502,2769.1,2768.4,0.0021982]
[1645956121425,0.3613,2768.9,2768.4,0.0021982]
[1645956121824,0.3613,2768.9,2767.7,1.17660943]
[1645956122068,0.3613,2768.9,2767.7,4.67660943]
[1645956122272,0.3613,2768.9,2767.7,3.5]
[1645956122471,0.3613,2768.8,2767.7,4.5]
[1645956122669,0.3613,2768.8,2767.6,1.97183685]
[1645956123072,0.3613,2768.8,2767.6,0.97183685]
[1645956123273,1.06564034,2768.4,2767.7,1.07950996]
[1645956123472,0.00382819,2768.3,2767.7,1.08125433]
[1645956124273,1.06564034,2768.4,2767.7,1.08125433]
[1645956124472,1.06564034,2768.4,2767.7,0.00174437]
[1645956124673,0.00600606,2768.2,2767.9,0.00600671]
[1645956125738,1.72694034,2768.4,2767.7,0.00174437]
[1645956125921,0.1444,2768.3,2767.5,0.25]
[1645956126120,0.1444,2768.3,2767.3,0.00174437]
[1645956126325,1.304,2768.3,2767.0,0.67358122]
[1645956126520,1.6653,2768.3,2767.1,0.00174437]
[1645956127328,1.604,2768.3,2767.5,0.00218199]
[1645956127532,1.304,2768.3,2767.5,0.00218199]
[1645956127928,1.304,2768.3,2767.7,1.18173922]
[1645956128126,1.304,2768.3,2767.8,0.49378952]
[1645956128328,0.1444,2768.3,2767.8,0.49378952]
[1645956128528,0.00600949,2768.2,2767.9,0.49378952]
[1645956129331,0.1444,2768.3,2767.9,0.49378952]
[1645956129570,0.00600694,2768.2,2767.9,0.00600765]
[1645956130371,1.29208966,2768.4,2767.6,0.00174437]
[1645956130571,1.29208966,2768.4,2767.6,0.49369892]
[1645956130771,0.00383176,2768.2,2767.6,0.49544329]
[1645956131570,1.496,2768.6,2767.6,0.49544329]
[1645956131769,1.496,2768.6,2767.7,0.00174437]
[1645956131972,0.00383159,2768.2,2767.7,0.00174437]
[1645956132172,0.00383159,2768.2,2768.0,1.37991791]
[1645956132681,0.00383159,2768.2,2768.1,0.49284532]
[1645956132879,0.00383159,2768.2,2768.1,3.99284532]
[1645956133077,0.00383159,2768.2,2768.1,4.35414532]
[1645956133325,0.00383159,2768.2,2768.1,5.35414532]
[1645956133540,0.00600669,2768.3,2768.1,5.35414532]
[1645956133728,0.00600669,2768.3,2768.2,3.99458969]
[1645956133927,0.00600669,2768.3,2768.2,0.49284532]
[1645956134328,0.00600669,2768.3,2768.1,0.3]
[1645956134529,0.00600669,2768.3,2768.0,2.37991791]
[1645956134727,0.00600683,2768.3,2768.1,0.49279126]
[1645956134928,0.00600683,2768.3,2767.9,0.30600781]
[1645956135127,0.00600683,2768.3,2768.0,0.49283276]
[1645956135332,0.1444,2768.8,2768.0,0.49283276]
[1645956135526,0.1444,2768.8,2767.7,0.00174437]
[1645956135726,1.2410155,2768.3,2767.9,0.00600768]
[1645956136626,1.59630881,2768.3,2767.4,0.00174437]
[1645956136826,1.59630881,2768.3,2767.4,0.49479559]
[1645956137074,0.00600669,2768.3,2767.9,0.00600768]
[1645956137880,0.3613,2768.6,2767.6,0.00174437]
[1645956138076,0.00600398,2768.3,2767.9,0.00600497]
[1645956138476,0.00600398,2768.3,2767.5,0.97248329]
[1645956138677,0.00600398,2768.3,2767.6,0.49295969]
[1645956139078,9.7101,2768.7,2767.6,0.49295969]
[1645956139278,9.7101,2768.7,2767.5,0.49295969]
[1645956139479,9.7101,2768.7,2767.6,0.49295969]
[1645956139680,0.3613,2768.2,2767.7,0.49295969]
[1645956140078,0.3613,2768.2,2767.8,0.49295969]
[1645956140279,0.3613,2768.2,2767.3,0.25]
[1645956140485,0.00383431,2768.1,2767.4,0.49311873]
[1645956140739,0.00383431,2768.1,2767.5,0.49311873]
[1645956140939,0.00383431,2768.1,2767.6,0.49311873]
[1645956141344,9.1932,2768.7,2767.7,0.49311873]
[1645956141541,9.1932,2768.7,2767.4,3.5]
[1645956141742,0.00600679,2768.1,2767.7,0.0060077]
[1645956142641,9.5545,2768.7,2767.5,0.00173777]
[1645956142842,0.00600685,2768.1,2767.8,0.00600766]
[1645956143844,1.39220998,2768.4,2767.7,1.07428483]
[1645956144044,0.00600692,2768.1,2767.8,0.00600773]
[1645956144474,0.00600692,2768.1,2767.4,4.35430773]
[1645956144676,0.00600692,2768.1,2767.4,4.3560455]
[1645956145078,1.39220998,2768.4,2767.4,4.3560455]
[1645956145079,1.75350998,2768.4,2767.4,4.3560455]
[1645956145478,1.75350998,2768.4,2767.6,1.2388647]
[1645956146083,1.75350998,2768.4,2767.6,0.00173777]
[1645956146478,1.75350998,2768.4,2767.7,0.00217299]
[1645956146680,1.39220998,2768.4,2767.7,0.00217299]
[1645956147279,1.39220998,2768.4,2767.6,0.00173777]
[1645956147680,9.1932,2768.7,2767.7,0.00217299]
[1645956147981,0.3613,2768.6,2767.7,0.00217299]
[1645956148633,0.3613,2768.6,2767.5,0.0017417]
[1645956148837,1.10142329,2768.3,2767.7,1.345475]
[1645956149032,0.00600687,2768.3,2767.7,1.345475]
[1645956149936,0.00600698,2768.1,2767.7,0.00600802]
[1645956150935,1.05373404,2768.3,2767.5,0.0017417]
[1645956151137,0.00600697,2768.1,2767.7,0.00600788]
[1645956151541,0.37259781,2768.3,2767.7,0.00600788]
[1645956152184,0.37259781,2768.3,2767.5,0.0017417]
[1645956152784,0.37259781,2768.3,2767.5,0.67357855]
[1645956153586,0.0038386,2768.2,2767.5,0.67357855]
[1645956153787,0.0038386,2768.2,2767.6,0.0017417]